bitfinex-derivatives/quotes_ETHF0:USTF0_20251211
["timestamp","ask_amount","ask_price","bid_price","bid_amount"]
[1765415414756,3.2078,3268.2,3268.1,4.54866]
[1765415415055,7.5216,3268.2,3268.1,0.15296]
[1765415415564,2.1953,3267.4,3267.3,2.4008]
[1765415416053,1.3407,3268.0,3267.4,4.3957]
[1765415416351,1.3407,3268.0,3267.2,11.724]
[1765415416352,5.6545,3268.0,3267.2,11.724]
[1765415416752,3.2078,3268.2,3268.1,4.54866]
[1765415417258,7.5216,3268.2,3268.1,0.15296]
[1765415417553,3.2078,3268.2,3268.1,4.54866]
[1765415417954,5.4031,3268.2,3268.1,2.40076]
[1765415418851,5.6545,3267.5,3267.4,0.15299]
[1765415419063,4.3138,3267.2,3267.1,3.2078]
[1765415419262,4.3138,3266.9,3266.0,2.32717308]
[1765415419563,4.3138,3266.9,3266.0,14.58617308]
[1765415420260,4.3138,3266.9,3266.8,0.15302]
[1765415420462,4.3138,3266.3,3266.2,0.15305]
[1765415421255,0.00458989,3266.6,3266.5,2.40084]
[1765415421462,4.31838989,3266.6,3266.5,0.15304]
[1765415424471,4.31838989,3266.6,3266.0,13.35347502]
[1765415424472,4.3138,3266.1,3266.0,13.35347502]
[1765415425466,4.3138,3266.1,3266.0,1.09447502]
[1765415428271,4.3138,3266.1,3266.0,0.00300194]
[1765415436469,2.1953,3266.1,3266.0,4.50366194]
[1765415436680,4.5409,3266.3,3266.2,2.29645]
[1765415436978,4.5409,3266.3,3266.2,0.15305]
[1765415438174,2.2696,3266.5,3266.4,2.1434]
[1765415438380,0.00458989,3266.6,3266.5,4.50064]
[1765415438580,2.27418989,3266.6,3266.5,4.50064]
[1765415438877,4.54548989,3266.6,3266.5,4.50064]
[1765415439075,4.54548989,3266.6,3266.5,2.29644]
[1765415439472,3.2078,3268.2,3266.5,1.3183]
[1765415439776,2.2696,3267.5,3267.4,2.1434]
[1765415439974,4.5409,3267.5,3267.4,2.1434]
[1765415440366,4.5409,3267.5,3266.9,1.97942034]
[1765415440571,5.85498989,3267.5,3267.3,0.153]
[1765415440772,4.5409,3267.4,3267.3,0.153]
[1765415440968,2.27418989,3267.5,3267.4,2.1434]
[1765415441172,0.00458989,3267.5,3267.4,4.50059]
[1765415441375,2.27418989,3267.5,3267.4,4.50059]
[1765415441570,5.8504,3267.0,3266.9,0.00458989]
[1765415441777,5.8504,3267.0,3266.0,0.00300194]
[1765415441778,4.5409,3266.1,3266.0,0.00300194]
[1765415442372,2.2696,3266.1,3266.0,2.29946194]
[1765415442578,4.5409,3266.1,3266.0,0.15606194]
[1765415445982,1.3095,3266.5,3265.2,2.433]
[1765415445983,4.5409,3265.4,3265.3,0.15309]
[1765415446579,2.2696,3265.6,3265.5,0.15308]
[1765415446987,2.27346683,3265.6,3265.5,0.15604592]
[1765415447180,2.27346683,3265.6,3265.5,2.29944592]
[1765415447487,4.54476683,3265.6,3265.5,0.15604592]
[1765415448890,4.54476683,3265.6,3265.5,2.29944592]
[1765415449090,2.27346683,3265.6,3265.5,2.29944592]
[1765415449286,4.54476683,3265.6,3265.5,2.29944592]
[1765415449483,4.54476683,3265.6,3265.5,0.15604592]
[1765415450086,0.00386683,3265.6,3265.5,5.82194592]
[1765415450293,2.27346683,3265.6,3265.5,2.29944592]
[1765415450592,4.54476683,3265.6,3265.5,0.15604592]
[1765415451387,2.27346683,3265.6,3265.5,2.29944592]
[1765415451787,4.54476683,3265.6,3265.5,0.15604592]
[1765415458598,2.27346683,3265.6,3265.5,4.22734592]
[1765415459398,4.23776683,3265.6,3265.5,2.29944592]
[1765415459797,4.23776683,3265.6,3265.5,0.15604592]
[1765415460499,4.23776683,3265.6,3265.5,2.20164592]
[1765415460702,0.00386683,3265.6,3265.5,5.37324592]
[1765415462296,3.9359,3266.3,3266.2,2.19865]
[1765415462697,3.9359,3266.3,3266.2,0.15305]
[1765415463292,5.1979,3266.0,3265.9,0.00458989]
[1765415463495,3.9359,3265.6,3265.5,0.00296592]
[1765415463893,3.9359,3264.7,3264.6,0.15312]
[1765415464196,3.9359,3264.7,3264.6,2.19872]
[1765415464396,3.9359,3265.2,3265.1,2.1987]
[1765415464598,3.9359,3265.2,3265.1,0.1531]
[1765415464794,3.9359,3265.2,3265.1,0.15631451]
[1765415466196,3.9359,3265.2,3265.1,0.00321451]
[1765415469311,3.9359,3264.8,3264.7,0.15312]
[1765415470097,4.5783,3264.0,3263.9,0.15316]
[1765415470298,4.58213916,3264.0,3263.9,0.15632142]
[1765415470500,4.58213916,3264.0,3263.9,2.142e-05]
[1765415470701,0.64623916,3264.0,3263.0,7.02372034]
[1765415471204,0.00383916,3264.0,3263.9,3.8277]
[1765415471601,1.95053916,3264.0,3263.9,3.98411028]
[1765415471796,0.00383916,3264.0,3263.9,3.98411028]
[1765415472197,3.88763916,3264.0,3263.9,2.09201028]
[1765415472502,1.95053916,3264.0,3263.9,2.09201028]
[1765415472701,1.95053916,3264.0,3263.9,3.98411028]
[1765415472904,0.00383916,3264.0,3263.9,3.98411028]
[1765415473301,0.00458989,3264.3,3263.9,3.98411028]
[1765415473499,1.2098,3266.0,3264.9,3.8277]
[1765415473697,3.8838,3265.2,3265.1,1.9356]
[1765415473909,1.9467,3265.2,3265.1,3.8277]
[1765415474412,3.88693057,3265.2,3265.1,0.1531]
[1765415475813,1.94983057,3265.2,3265.1,3.9808]
[1765415476007,0.00313057,3265.2,3265.1,3.9808]
[1765415477009,3.88693057,3265.2,3265.1,0.1531]
[1765415478006,3.8838,3264.9,3264.8,0.00458989]
[1765415479823,1.9467,3264.9,3264.8,3.98540989]
[1765415481021,1.9467,3264.9,3264.8,2.09330989]
[1765415481317,1.9467,3264.9,3264.8,3.98540989]
[1765415481516,1.9467,3264.9,3264.8,2.09330989]
[1765415482214,1.9467,3264.9,3264.8,3.98540989]
[1765415482414,0.00313057,3265.2,3265.1,3.9808]
[1765415487524,1.2098,3266.5,3265.7,0.15307]
[1765415487826,1.1020925,3266.4,3265.7,0.15307]
[1765415488026,3.6686,3266.3,3266.2,0.15305]
[1765415488422,3.6686,3265.1,3265.0,1.7741]
[1765415488622,3.6686,3264.4,3264.3,0.15314]
[1765415489520,3.6686,3264.4,3264.3,0.15683928]
[1765415489825,0.00458989,3264.7,3264.3,3.73163928]
[1765415490224,1.86768989,3264.7,3264.6,3.5748]
[1765415490430,0.00458989,3264.7,3264.6,3.5748]
[1765415490622,0.00458989,3264.7,3264.6,3.72793]
[1765415490824,3.67318989,3264.7,3264.6,0.15313]
[1765415494726,3.6686,3264.4,3264.3,0.00369928]
[1765415494923,1.8631,3263.2,3263.1,1.92729]
[1765415495127,3.6686,3263.2,3263.1,0.15319]
[1765415495832,3.67248431,3263.2,3263.1,0.15553762]
[1765415496628,0.00388431,3263.2,3263.1,3.73033762]
[1765415496924,1.86698431,3263.2,3263.1,1.92963762]
[1765415497526,0.00388431,3263.2,3263.1,3.73033762]
[1765415497823,1.8631,3263.8,3263.1,0.00234762]
[1765415498226,1.8631,3263.8,3263.7,1.7741]
[1765415499026,1.86701392,3263.8,3263.7,1.7741]
[1765415499329,0.00391392,3263.8,3263.7,3.5748]
[1765415499534,0.00391392,3263.8,3263.7,3.72797]
[1765415500226,1.86701392,3263.8,3263.7,1.92727]
[1765415500423,3.67251392,3263.8,3263.7,0.15317]
[1765415502735,1.86701392,3263.8,3263.7,1.92727]
[1765415502932,3.6686,3263.2,3263.1,0.00234762]
[1765415503233,3.6686,3263.2,3263.1,0.15554762]
[1765415509239,1.8631,3263.2,3263.1,3.73034762]
[1765415509440,3.6686,3263.2,3263.1,0.15554762]
[1765415510537,1.0507,3263.5,3263.3,0.15319]
[1765415510744,3.6686,3263.4,3263.3,1.92729]
[1765415511446,1.8631,3263.6,3263.5,3.72798]
[1765415511641,3.6686,3263.6,3263.5,1.92728]
[1765415511842,3.6686,3263.6,3263.5,0.15318]
[1765415514545,1.8631,3263.6,3263.5,3.72798]
[1765415514845,3.6686,3263.6,3263.5,1.92728]
[1765415515045,3.6686,3263.6,3263.5,0.15318]
[1765415518743,3.4571,3263.2,3263.1,0.00234762]
[1765415521257,3.4571,3262.6,3262.5,12.255]
[1765415521445,3.4571,3262.6,3262.5,0.15322]
[1765415522148,1.7254,3261.7,3261.6,2.4544]
[1765415522456,3.4571,3261.7,3261.6,0.15652198]
[1765415523352,3.4571,3260.9,3260.8,0.1533]
[1765415524260,3.45932413,3260.9,3260.8,0.15682375]
[1765415524553,0.00222413,3260.9,3260.8,3.52772375]
[1765415524951,1.72762413,3260.9,3260.8,1.85052375]
[1765415525155,3.45932413,3260.9,3260.8,0.15682375]
[1765415526257,0.00222413,3260.9,3260.8,3.52772375]
[1765415526458,3.45932413,3260.9,3260.8,0.15682375]
[1765415529060,1.72762413,3260.9,3260.8,0.15682375]
[1765415529263,1.72762413,3260.9,3260.8,3.52772375]
[1765415530162,3.28732413,3260.9,3260.8,1.85052375]
[1765415530364,3.28732413,3260.9,3260.8,0.15682375]
[1765415530863,0.00459721,3261.2,3261.1,3.56289]
[1765415531062,3.14169721,3261.2,3261.1,0.15329]
[1765415531263,4.24527399,3261.2,3261.1,0.15329]
[1765415531864,1.5858656,3261.2,3261.1,1.85409]
[1765415532266,1.5858656,3261.2,3261.1,3.56289]
[1765415532460,0.0084656,3261.2,3261.1,3.56289]
[1765415533069,3.1455656,3261.2,3261.1,0.15329]
[1765415533471,1.5858656,3261.2,3261.1,1.85409]
[1765415533971,0.0084656,3261.2,3261.1,3.56289]
[1765415534368,2.68091253,3261.8,3261.7,3.4096]
[1765415534581,4.24051392,3261.8,3261.7,0.15326]
[1765415534763,3.1371,3261.8,3261.7,0.15326]
[1765415535070,4.24053112,3261.8,3261.7,0.15326]
[1765415535269,3.1371,3261.0,3260.9,0.1533]
[1765415535466,0.00372796,3261.0,3260.9,3.5629]
[1765415536070,0.00372796,3261.0,3260.8,0.00352375]
[1765415536071,4.24056587,3261.9,3261.8,0.15326]
[1765415537082,4.24350828,3261.9,3261.8,0.15326]
[1765415540677,1.10640828,3261.9,3261.8,3.56286]
[1765415541177,4.24350828,3261.9,3261.8,0.15326]
[1765415541376,2.68380828,3261.9,3261.8,3.56286]
[1765415541571,1.58034241,3261.9,3261.8,3.56286]
[1765415541879,3.14004241,3261.9,3261.8,0.15326]
[1765415542078,3.14004241,3261.9,3261.8,1.85406]
[1765415542281,1.58034241,3261.9,3261.8,3.56286]
[1765415542576,0.00294241,3261.9,3261.8,3.56286]
[1765415543773,1.58034241,3261.9,3261.8,3.56286]
[1765415544276,1.10628504,3261.9,3261.8,3.56286]
[1765415544473,4.24338504,3261.9,3261.8,0.15326]
[1765415545575,4.24338504,3261.9,3261.2,0.15328]
[1765415545783,3.1371,3261.3,3261.2,0.15328]
[1765415545980,4.24044263,3261.3,3261.2,0.15328]
[1765415546787,1.5774,3261.3,3261.2,3.56288]
[1765415546988,1.5774,3261.5,3261.4,1.85408]
[1765415547189,2.68090122,3261.5,3261.4,1.85408]
[1765415547392,4.24060122,3261.5,3261.4,0.15328]
[1765415547587,4.99890122,3261.5,3261.4,0.15328]
[1765415547788,1.5774,3260.9,3260.8,1.70432375]
[1765415547989,1.5774,3260.9,3260.8,3.41312375]
[1765415548185,3.1588,3261.0,3260.9,0.1533]
[1765415548488,4.0763,3261.0,3260.9,0.1533]
[1765415548689,5.17996917,3261.0,3260.9,0.1533]
[1765415548889,3.1588,3260.9,3260.8,0.00352375]
[1765415549085,4.26246917,3260.9,3260.8,0.00352375]
[1765415550586,0.933,3260.5,3259.8,0.15335]
[1765415550797,1.10366917,3260.4,3259.8,0.15335]
[1765415551096,1.10366917,3260.3,3260.2,1.5801]
[1765415551387,1.10366917,3260.3,3260.2,3.1817]
[1765415551588,0.00459721,3260.6,3260.5,4.24232]
[1765415551800,2.54710676,3261.6,3261.5,0.9073]
[1765415551989,1.59484917,3261.9,3261.5,4.089]
[1765415552287,0.00294241,3261.9,3260.5,4.27657644]
[1765415552488,0.00294241,3261.9,3261.5,0.9073]
[1765415552690,1.59190676,3262.7,3261.8,3.1817]
[1765415552991,1.59190676,3263.0,3262.5,0.9073]
[1765415553391,7.59190676,3262.9,3262.0,0.15325]
[1765415553591,1.59190676,3262.9,3262.0,0.15325]
[1765415553895,0.00459721,3262.8,3262.2,0.9073]
[1765415554483,0.00459721,3262.8,3262.1,0.00459721]
[1765415554687,1.59650397,3262.8,3262.0,0.00318226]
[1765415555090,1.59190676,3262.7,3262.0,0.00318226]
[1765415555484,1.59650397,3262.8,3262.0,0.00318226]
[1765415555684,0.00459721,3262.8,3262.1,0.00459721]
[1765415555886,1.59650397,3262.8,3262.1,0.00459721]
[1765415557489,0.00459721,3262.8,3262.2,0.9073]
[1765415561591,0.00459721,3262.8,3262.7,3.1817]
[1765415562192,0.00459721,3262.8,3262.7,1.5801]
[1765415563495,6.00459721,3262.8,3262.2,0.9073]
[1765415563692,1.10336443,3262.7,3262.2,0.9073]
[1765415563887,0.00459721,3262.8,3262.7,3.1817]
[1765415564093,0.00459721,3262.8,3262.7,1.5801]
[1765415564398,0.00459721,3262.8,3262.5,0.9073]
[1765415564593,0.00459721,3262.8,3262.7,3.1817]
[1765415566000,0.00459721,3262.8,3262.5,0.9073]
[1765415566198,0.00459721,3262.8,3262.7,1.5801]
[1765415566501,0.00459721,3262.8,3262.7,3.1817]
[1765415568203,0.00459721,3262.8,3262.5,0.9073]
[1765415568399,0.00459721,3262.8,3262.2,0.9073]
[1765415571400,0.00459721,3262.8,3262.1,0.00459721]
[1765415571401,0.15322,3262.6,3262.1,0.00459721]
[1765415571590,0.15322,3262.6,3261.5,0.9073]
[1765415571591,1.103312,3262.5,3261.5,0.9073]
[1765415571795,1.103312,3262.4,3261.5,0.9073]
[1765415572000,1.103312,3262.3,3261.5,0.9073]
[1765415572199,1.103312,3262.2,3261.5,0.9073]
[1765415572400,1.103312,3262.1,3261.5,0.9073]
[1765415572593,1.103312,3262.1,3261.7,0.00459721]
[1765415573199,1.103312,3262.3,3261.7,0.00459721]
[1765415573394,1.103312,3262.2,3261.7,0.00459721]
[1765415573595,1.103312,3262.1,3261.7,0.00459721]
[1765415573796,1.103312,3262.0,3261.7,0.00459721]
[1765415574103,0.15323,3262.4,3261.7,0.00818069]
[1765415574304,1.10356146,3262.3,3261.7,0.00818069]
[1765415574705,0.15326,3261.8,3261.0,0.9073]
[1765415574897,1.25682146,3261.7,3261.0,0.9073]
[1765415575199,1.10356146,3261.6,3261.0,0.9073]
[1765415575399,1.10356146,3261.5,3261.0,0.9073]
[1765415575602,1.59190676,3262.2,3261.6,0.9073]
[1765415575799,1.10378056,3262.1,3261.6,0.91107942]
[1765415575998,1.10378056,3262.0,3261.6,0.91107942]
[1765415576195,1.10378056,3261.9,3261.6,0.91107942]
[1765415576502,1.10378056,3261.8,3261.6,0.00377942]
[1765415576695,1.10378056,3261.7,3261.0,0.9073]
[1765415576891,1.10378056,3261.6,3261.0,0.9073]
[1765415577097,1.10378056,3261.5,3261.0,0.9073]
[1765415577293,1.10378056,3261.4,3260.4,0.9073]
[1765415577500,3.57666335,3261.2,3259.8,0.9073]
[1765415577696,0.15790721,3260.8,3259.8,0.90985281]
[1765415578203,0.15332,3260.5,3259.8,0.00255281]
[1765415578402,0.15586646,3260.5,3259.8,0.00255281]
[1765415578998,1.25964702,3260.5,3259.8,1.12705281]
[1765415579300,1.10378056,3260.4,3259.8,1.12705281]
[1765415579500,0.15586646,3260.5,3259.8,1.12705281]
[1765415579705,0.00254646,3260.5,3259.8,1.12705281]
[1765415582104,0.00254646,3260.5,3260.4,1.1245]
[1765415582306,0.00254646,3260.5,3259.8,1.12705281]
[1765415583511,0.00254646,3260.5,3260.4,4.6478]
[1765415583703,0.00254646,3260.5,3260.4,1.1245]
[1765415584508,0.00254646,3260.5,3260.4,2.8854]
[1765415584904,0.00254646,3260.5,3260.4,4.6478]
[1765415586104,0.00254646,3260.5,3260.4,2.8854]
[1765415586310,0.00254646,3260.5,3260.4,4.6478]
[1765415586708,0.00459721,3260.8,3260.7,3.5233]
[1765415587716,0.0083206,3260.8,3260.7,3.5233]
[1765415591514,0.15323,3262.4,3261.8,1.7719]
[1765415591718,0.15323,3262.4,3262.2,1.0811]
[1765415591907,2.018,3263.2,3261.0,1.0811]
[1765415591908,3.08857783,3262.5,3261.0,1.0811]
[1765415592111,1.98475659,3261.9,3261.0,1.0811]
[1765415592512,0.00459721,3261.8,3261.1,0.00459721]
[1765415592819,1.10841376,3261.8,3261.1,0.00459721]
[1765415594415,1.10841376,3261.8,3261.6,1.0811]
[1765415594720,0.00459721,3261.8,3261.6,1.0811]
[1765415595912,0.00459721,3261.8,3261.7,3.4976]
[1765415596114,0.00459721,3261.8,3261.7,1.7719]
[1765415596419,0.00459721,3261.8,3261.6,1.0811]
[1765415598225,1.10833809,3261.8,3261.6,1.0811]
[1765415598927,1.10374088,3261.7,3261.1,0.00459721]
[1765415599126,1.10374088,3261.6,3261.1,0.00459721]
[1765415599318,1.10374088,3261.5,3261.1,0.00459721]
[1765415599519,1.10374088,3261.4,3261.1,0.00459721]
[1765415599720,1.10374088,3261.3,3261.1,0.00459721]
[1765415599939,1.10374088,3261.2,3261.1,0.00459721]
[1765415600825,1.10374088,3261.7,3261.1,0.00459721]
[1765415601020,1.10374088,3261.6,3261.1,0.00459721]
[1765415601220,1.59650397,3261.8,3261.1,0.00459721]
[1765415601221,1.10374088,3261.5,3261.1,0.00459721]
[1765415601420,1.10374088,3261.4,3261.1,0.00459721]
[1765415601617,1.10374088,3261.3,3261.1,0.00459721]
[1765415601819,1.10374088,3261.2,3261.1,3.50219721]
[1765415604227,0.00459721,3261.8,3261.5,1.0811]
[1765415604430,1.10374983,3261.7,3261.5,1.0811]
[1765415604620,1.10374983,3261.6,3261.5,1.0811]
[1765415606528,1.10374983,3261.6,3261.5,2.853]
[1765415606825,1.10374983,3261.6,3261.5,4.5787]
[1765415608729,0.00459721,3261.8,3261.7,3.3142]
[1765415609024,1.10819574,3261.8,3261.7,3.3142]
[1765415610018,4.31599574,3261.8,3261.7,3.3142]
[1765415610217,3.2078,3261.8,3261.7,3.3142]
[1765415610428,0.00272853,3261.9,3261.8,3.3142]
[1765415610629,3.2078,3261.9,3261.8,3.3142]
[1765415611526,6.66069082,3261.9,3261.8,1.6376]
[1765415611724,3.21039082,3261.9,3261.8,3.3142]
[1765415612530,4.91579082,3261.9,3261.8,3.3142]
[1765415612730,3.4503,3261.2,3261.1,0.00459721]
[1765415613122,3.4503,3261.1,3260.4,1.1245]
[1765415613320,3.2078,3260.5,3260.4,2.7621]
[1765415613526,6.6581,3260.5,3260.4,1.1245]
[1765415613719,6.6581,3260.5,3259.5,1.21116]
[1765415613922,3.2078,3260.1,3260.0,4.3953]
[1765415614122,6.6581,3260.1,3260.0,0.00347394]
[1765415614727,3.2078,3260.1,3260.0,3.31767394]
[1765415615027,3.2078,3260.1,3260.0,0.00347394]
[1765415615229,6.6581,3260.1,3260.0,0.00347394]
[1765415616634,4.9132,3260.1,3260.0,0.00347394]
[1765415616832,4.9132,3260.1,3260.0,2.69887394]
[1765415617529,4.9132,3260.1,3260.0,1.06127394]
[1765415617730,4.9132,3260.1,3260.0,2.69887394]
[1765415618131,4.9132,3260.1,3260.0,1.06127394]
[1765415618533,3.2078,3260.1,3260.0,4.37547394]
[1765415618724,6.6581,3260.1,3260.0,0.00347394]
[1765415619336,3.4503,3259.8,3258.3,0.15342]
[1765415619534,3.2078,3259.1,3259.0,2.6954]
[1765415619736,3.2078,3259.1,3259.0,4.372]
[1765415620333,3.21122846,3259.1,3259.0,4.3748495]
[1765415620528,3.21122846,3259.1,3259.0,0.0028495]
[1765415620529,6.66152846,3259.1,3259.0,0.0028495]
[1765415620840,6.66152846,3259.1,3258.0,4.2656]
[1765415620841,1.7054,3258.6,3258.0,4.2656]
[1765415621135,3.21122846,3259.1,3258.0,4.2656]
[1765415621136,1.59190676,3259.6,3259.5,3.3142]
[1765415621438,6.6581,3259.6,3258.6,0.15341]
[1765415621635,3.2078,3259.2,3259.1,3.3142]
[1765415622231,4.31588883,3259.2,3259.1,3.31706165]
[1765415622433,8.74938883,3259.2,3259.1,0.00286165]
[1765415622634,7.76618883,3259.2,3259.1,0.00286165]
[1765415623237,8.74938883,3259.2,3259.1,0.00286165]
[1765415623438,7.76618883,3259.2,3259.1,1.64046165]
[1765415623737,6.02128883,3259.2,3259.1,1.64046165]
[1765415623938,6.02128883,3259.2,3259.1,3.31706165]
[1765415624137,4.31588883,3259.2,3259.1,3.31706165]
[1765415624632,3.2114247,3259.2,3259.1,3.31706165]
[1765415625237,4.9168247,3259.2,3259.1,1.64046165]
[1765415625534,6.6617247,3259.2,3259.1,0.00286165]
[1765415625946,3.2114247,3259.2,3259.1,3.31706165]
[1765415626930,0.0036247,3259.2,3259.1,3.31706165]
[1765415627430,1.7090247,3259.2,3259.1,3.31706165]
[1765415627631,6.6617247,3259.2,3259.1,0.00286165]
[1765415629041,6.6617247,3259.2,3258.5,0.15341]
[1765415629249,3.2078,3258.8,3258.5,0.15341]
[1765415629442,4.9132,3258.8,3258.7,1.6376]
[1765415629941,3.4503,3258.6,3258.5,0.15341]
[1765415630134,3.2078,3258.8,3258.7,3.3142]
[1765415630338,1.7054,3258.6,3258.5,1.79366418]
[1765415630537,1.7054,3258.6,3258.5,3.47026418]
[1765415630937,3.4503,3258.6,3258.5,1.79366418]
[1765415631335,1.7054,3258.6,3258.5,3.47026418]
[1765415631536,4.9132,3258.8,3258.7,1.6376]
[1765415631736,3.2078,3258.8,3258.7,3.3142]
[1765415631939,4.9132,3258.8,3258.7,3.3142]
[1765415632344,3.4503,3258.6,3258.5,0.00265418]
[1765415634444,1.7054,3258.6,3258.5,3.31685418]
[1765415634742,3.4503,3258.6,3258.5,0.00265418]
[1765415635848,4.9132,3258.8,3258.7,3.3142]
[1765415636234,6.6581,3258.8,3258.7,1.6376]
[1765415636641,1.7054,3258.6,3258.5,3.31685418]
[1765415637240,3.4503,3258.6,3258.5,0.00265418]
[1765415637646,3.4503,3258.6,3258.5,1.64025418]
[1765415638247,3.4503,3258.6,3258.5,0.00265418]
[1765415638546,3.8191,3258.1,3258.0,0.15343]
[1765415638740,7.0269,3258.1,3258.0,1.93853]
[1765415639046,5.1299,3258.1,3258.0,3.81203]
[1765415639248,3.2078,3258.1,3258.0,3.81203]
[1765415639447,0.00459721,3258.4,3258.0,4.92147156]
[1765415639646,0.00459721,3258.4,3258.3,3.6586]
[1765415640343,1.92669721,3258.4,3258.3,3.6586]
[1765415640741,0.00459721,3258.4,3258.3,3.6586]
[1765415640944,0.00459721,3258.4,3258.3,3.81202]
[1765415641747,0.00459721,3258.4,3258.3,9.81202]
[1765415641949,3.2078,3259.0,3258.9,3.6586]
[1765415642147,0.0036247,3259.2,3259.1,3.6586]
[1765415642453,1.0784,3260.5,3259.1,3.6586]
[1765415642454,3.2078,3260.6,3260.5,1.7851]
[1765415642745,5.1299,3260.6,3260.5,1.7851]
[1765415642947,3.2078,3260.6,3260.5,3.6586]
[1765415643146,0.00459721,3260.9,3260.8,3.6586]
[1765415643345,0.00688472,3260.9,3260.8,7.02365264]
[1765415643648,2.67030676,3262.0,3260.9,0.1533]
[1765415643848,2.67030676,3262.0,3261.4,3.2078]
[1765415644346,1.0784,3262.0,3261.4,3.2078]
[1765415644650,3.8191,3261.5,3261.4,3.2078]
[1765415644846,1.9221,3261.5,3261.4,3.2078]
[1765415645045,1.08613235,3262.0,3261.5,3.6586]
[1765415646044,1.08613235,3262.0,3261.5,1.7851]
[1765415646245,1.0784,3261.6,3261.4,3.2078]
[1765415646446,1.9221,3261.5,3261.4,3.2078]
[1765415646646,3.8191,3261.5,3261.4,3.2078]
[1765415648253,3.8191,3261.5,3261.4,3.07571988]
[1765415649153,1.897,3261.1,3261.0,3.2078]
[1765415649348,3.8191,3261.1,3261.0,3.2078]
[1765415650052,4.0421,3260.9,3260.8,0.00395264]
[1765415650449,4.12,3260.3,3260.2,3.21239721]
[1765415650853,4.12,3260.3,3260.2,2.88182545]
[1765415651049,4.12,3259.9,3259.8,3.2078]
[1765415651451,4.12,3259.9,3259.8,3.21087137]
[1765415654243,0.00459721,3260.2,3259.8,3.21087137]
[1765415655151,4.12,3259.9,3259.8,3.21087137]
[1765415655347,4.12,3259.9,3259.8,2.88904668]
[1765415655552,2.0,3259.0,3258.9,3.2078]
[1765415655850,4.12,3259.0,3258.9,3.2078]
[1765415656651,2.00318747,3259.0,3258.9,3.20892976]
[1765415656850,0.00318747,3259.0,3258.9,5.23822976]
[1765415657152,0.00318747,3259.0,3258.9,7.28432976]
[1765415657745,4.12318747,3259.0,3258.9,0.00112976]
[1765415658150,2.00318747,3259.0,3258.9,2.03042976]
[1765415658452,2.00318747,3259.0,3258.9,0.00112976]
[1765415658656,4.12318747,3259.0,3258.9,0.00112976]
[1765415659259,5.22777065,3259.0,3258.9,0.00112976]
[1765415660254,4.12318747,3259.0,3258.9,0.00112976]
[1765415660655,5.22781032,3259.0,3258.9,0.00112976]
[1765415660855,5.4353,3258.6,3258.1,3.36123]
[1765415662355,2.0,3258.2,3258.1,5.39053]
[1765415662659,0.00459721,3258.5,3258.1,7.43663]
[1765415662861,4.12,3258.2,3258.1,3.2078]
[1765415663360,4.12,3258.2,3257.3,0.15347]
[1765415663657,2.0,3256.3,3255.8,0.15354]
[1765415663864,0.0046044,3256.4,3256.2,4.0754]
[1765415664055,0.0046044,3256.4,3256.3,4.0754]
[1765415664262,2.0046044,3256.4,3255.8,0.15354]
[1765415664456,0.0046044,3256.4,3256.3,2.0293]
[1765415664654,2.00843438,3256.4,3255.8,0.15354]
[1765415664859,4.12843438,3256.4,3254.9,0.15358]
[1765415665161,4.12843438,3256.4,3255.1,0.75583061]
[1765415665362,4.12843438,3256.4,3255.2,0.15357]
[1765415665659,4.12843438,3256.4,3255.3,0.15356]
[1765415665867,0.00843438,3256.4,3255.7,3.2078]
[1765415666162,1.11389873,3256.4,3255.7,3.2078]
[1765415666365,0.00843438,3256.4,3256.3,4.0754]
[1765415666561,2.0,3256.3,3256.2,3.2078]
[1765415666771,4.12,3256.3,3256.2,3.2078]
[1765415667264,4.12,3256.3,3255.8,3.2078]
[1765415667463,1.3153,3256.2,3255.8,3.2078]
[1765415668056,0.00843438,3256.4,3255.8,5.441]
[1765415668257,0.00843438,3256.4,3256.3,4.4291]
[1765415668558,0.00843438,3256.4,3256.1,0.15352]
[1765415668559,2.20973438,3256.4,3256.1,0.15352]
[1765415668866,0.00843438,3256.4,3256.3,7.6369]
[1765415670863,4.39623438,3256.4,3256.3,3.2078]
[1765415671566,0.00843438,3256.4,3256.3,7.6369]
[1765415673968,3.2078,3257.3,3257.2,2.2332]
[1765415674164,7.5956,3257.3,3256.8,3.2078]
[1765415674665,3.2078,3257.7,3257.6,2.2332]
[1765415674865,4.31518146,3257.7,3257.6,4.43172099]
[1765415675067,7.59791176,3257.7,3257.6,0.00262099]
[1765415675268,4.31516619,3257.7,3257.6,2.23582099]
[1765415675769,1.10736619,3257.7,3257.6,2.23582099]
[1765415676072,0.00231176,3257.7,3257.6,4.43172099]
[1765415677067,0.00231176,3257.7,3257.6,4.58517099]
[1765415677268,1.59190676,3258.8,3258.5,4.4291]
[1765415677470,4.3878,3258.6,3258.2,3.2078]
[1765415677671,1.1046431,3258.5,3258.4,2.2332]
[1765415677873,1.1046431,3258.5,3258.4,4.4291]
[1765415678371,1.10748871,3258.5,3258.4,4.4291]
[1765415679277,3.30878871,3258.5,3258.2,3.2078]
[1765415679470,1.1046431,3258.4,3258.3,2.2332]
[1765415679671,3.3059431,3258.4,3258.3,2.2332]
[1765415680269,3.3059431,3258.4,3258.2,3.2078]
[1765415680470,3.3059431,3258.3,3257.8,3.2078]
[1765415680675,1.1046431,3258.2,3257.6,3.36387099]
[1765415680867,1.1046431,3258.1,3257.6,3.36387099]
[1765415681067,1.1046431,3258.0,3257.6,3.36387099]
[1765415681273,1.1046431,3257.9,3257.8,2.2332]
[1765415681471,3.3059431,3257.9,3257.8,2.2332]
[1765415681669,3.3059431,3257.9,3257.6,3.36387099]
[1765415681869,1.59190676,3258.3,3257.8,2.2332]
[1765415682070,1.10482024,3258.2,3257.8,2.2332]
[1765415682269,1.10482024,3258.1,3257.8,2.2332]
[1765415682477,1.10482024,3258.0,3257.9,2.2332]
[1765415682878,1.10482024,3258.0,3257.9,4.4291]
[1765415684277,0.00284561,3258.5,3258.4,4.4291]
[1765415684682,0.0046044,3258.8,3258.7,4.5825]
[1765415685071,0.0046044,3258.8,3258.7,7.7903]
[1765415685270,0.0046044,3258.8,3258.7,3.2078]
[1765415685271,4.3924044,3258.8,3258.7,3.2078]
[1765415685481,4.3878,3258.4,3257.5,3.2078]